Cogmind - Beta 12 @@@ ROGUE MODE // 2023.03.17 @ 23:45:28 Player: Cracklepappy Result: Core destroyed Performance ------------- Evolutions (6) 3000 Regions Visited (21) 4200 Robots Destroyed (444) 2220 Value Destroyed (18751) 18751 Prototype IDs (44) 880 Alien Tech Used (0) 0 Bonus (8198) 8198 TOTAL SCORE: 37249 Bonus ------- Triggered High Security 500 High Alert Combat Kills 5554 Follower Combat Kills 1578 Entered Garrisons 200 Network Hubs Disabled 200 Met Zhirov 300 Built Enhanced Grunts 300 Met R17 at Cetus 500 Friendly Fire -934 Cogmind --------- Core Integrity 0/1150 Matter 40/300 Energy 690/779 System Corruption 0% Temperature Critical (3410) Movement Hovering (198) Ox1 Location -3/Proximity Caves Parts ------- > --- POWER (2) -------- Neutrino-Quantum Core > --- PROPULSION (6) --- Hovering Gyrokinetic Exoskeleton > --- UTILITY (7) ------ Armored Scrap Engine Advanced Heat Sink Improved Cooling System Large Storage Unit Improved Targeting Computer Centrium Medium Armor Plating > --- WEAPON (4) ------- Mini Smartbomb Launcher Hvy. Accelerated Rail Construct/C > --- INVENTORY (15) --- Advanced Coolant Injector Advanced Energy Well (500) Advanced Energy Well (500) Experimental Signal Interpreter Encrypted Comm Array Experimental Weapon Cycler Advanced Transmission Jammer Centrium Medium Armor Plating Advanced Shield Generator Advanced Hacking Suite Experimental Hacking Suite Improved System Restoration Module High-powered Tractor Beam Advanced Datajack Peak State ------------ > --- POWER ------------ Neutrino-Quantum Core > --- PROPULSION ------- Hovering Gyrokinetic Exoskeleton > --- UTILITY ---------- Armored Scrap Engine Improved Cooling System Advanced Coolant Injector Large Storage Unit Improved Targeting Computer Centrium Medium Armor Plating > --- WEAPON ----------- Mini Smartbomb Launcher Hvy. Accelerated Rail Construct/C Plasma Lance > --- INVENTORY -------- Advanced Heat Sink Improved Cooling System Advanced Energy Well Advanced Energy Well Experimental Signal Interpreter Experimental Weapon Cycler Advanced Transmission Jammer Centrium Medium Armor Plating Centrium Medium Armor Plating Advanced Shield Generator Experimental Hacking Suite Improved System Restoration Module High-powered Tractor Beam Mini Smartbomb Launcher Advanced Datajack [Rating: 131] Favorites ----------- Power Constructs Engine Cooled Ion Engine Power Core Constructs Propulsion Light Treads Treads Light Treads Leg Aluminum Leg Wheel Compact Wheel Hover Unit Constructs Utility Armored Scrap Engine Device Armored Scrap Engine Storage Large Storage Unit Processor Improved Targeting Computer Hackware Improved Hacking Suite Protection Light Armor Plating Weapon Constructs Energy Gun Heavy EM Shotgun Energy Cannon Heavy Particle Cannon Ballistic Gun Heavy Assault Rifle Ballistic Cannon Constructs Launcher Mini Smartbomb Launcher Impact Weapon Heavy Flail Piercing Weapon Plasma Lance Special Melee Weapon Advanced Datajack Build | -11 -10 -10 -9 -9 -8 -8 -8 -6 -6 -5 -5 -5 -5 -5 -4 -4 -4 -4 -4 -4 -3 ------- Run | Jun Mat Min Mat Min Mat Sto Rec Fac Gar Fac Ext Cet Arc Hub Fac Was Fac Upp Upp Zhi Pro Slots Evolved 12 | . . . 2 . 2 . . 4 . 2 . . . . 2 . . . . . . Power 1 | . . . . . . . . 1 . . . . . . . . . . . . . Propulsion 4 | . . . 1 . 1 . . 1 . . . . . . 1 . . . . . . Utility 5 | . . . 1 . . . . 1 . 2 . . . . 1 . . . . . . Weapon 2 | . . . . . 1 . . 1 . . . . . . . . . . . . . Parts Attached 280 | 7 10 3 26 7 36 52 7 9 14 13 11 5 6 12 20 12 15 5 6 3 1 Power 12 | 1 2 . 6 . 1 1 . . . . . . . . 1 . . . . . . Engine 12 | 1 2 . 6 . 1 1 . . . . . . . . 1 . . . . . . Core . | . . . . . . . . . . . . . . . . . . . . . . Reactor . | . . . . . . . . . . . . . . . . . . . . . . Propulsion 39 | 2 1 1 5 3 9 17 . . . . . . . . . . 1 . . . . Treads 34 | 1 1 1 5 2 8 15 . . . . . . . . . . 1 . . . . Leg 2 | . . . . 1 1 . . . . . . . . . . . . . . . . Wheel 1 | 1 . . . . . . . . . . . . . . . . . . . . . Hover 2 | . . . . . . 2 . . . . . . . . . . . . . . . Flight . | . . . . . . . . . . . . . . . . . . . . . . Utility 112 | 2 4 . 6 2 7 4 2 4 2 9 11 5 6 11 6 11 9 4 4 3 . Device 71 | 1 1 . 1 . 2 2 2 2 2 8 8 2 5 8 4 10 5 3 3 2 . Storage 6 | 1 2 . . . . 1 . . . . . 2 . . . . . . . . . Processor 1 | . . . . . . . . 1 . . . . . . . . . . . . . Hackware 5 | . . . . . . . . . . . . . . 3 . . 2 . . . . Protection 29 | . 1 . 5 2 5 1 . 1 . 1 3 1 1 . 2 1 2 1 1 1 . Artifact . | . . . . . . . . . . . . . . . . . . . . . . Weapon 117 | 2 3 2 9 2 19 30 5 5 12 4 . . . 1 13 1 5 1 2 . 1 Energy Gun 10 | . . . 1 . 1 4 1 . . . . . . 1 2 . . . . . . Energy Cannon 9 | . . . 1 . . . . . 1 2 . . . . 3 . 2 . . . . Ballistic Gun 48 | 2 2 1 6 2 15 16 4 . . . . . . . . . . . . . . Ballistic Cannon 13 | . . . . . . 2 . 3 5 1 . . . . 1 . 1 . . . . Launcher 26 | . 1 1 1 . 2 3 . 2 5 1 . . . . 6 1 1 . 1 . 1 Special Weapon . | . . . . . . . . . . . . . . . . . . . . . . Impact Weapon 7 | . . . . . 1 5 . . 1 . . . . . . . . . . . . Slashing Weapon . | . . . . . . . . . . . . . . . . . . . . . . Piercing Weapon 1 | . . . . . . . . . . . . . . . . . 1 . . . . Special Melee Weapon 3 | . . . . . . . . . . . . . . . 1 . . 1 1 . . Unidentified Prototypes 21 | . . . 3 . 1 7 . 1 . 2 . 1 1 . 1 1 2 . . 1 . Corrupted Parts 2 | . . . . . . . . . . . 1 . . 1 . . . . . . . System Corruption 11 | . . . . . . . . . . . 2 . . 9 . . . . . . . Parts Lost 29 | . 3 1 6 6 2 . . . 1 . 1 . 1 5 . . 1 . 1 1 . Power 4 | . 1 1 . . . . . . 1 . . . . 1 . . . . . . . Propulsion 6 | . 1 . 1 3 1 . . . . . . . . . . . . . . . . Utility 13 | . . . 5 1 1 . . . . . 1 . 1 2 . . . . 1 1 . Weapon 6 | . 1 . . 2 . . . . . . . . . 2 . . 1 . . . . Highest Loss Streak 4 | . 2 1 2 4 1 . . . 1 . 1 . 1 2 . . 1 . 1 1 . To Critical Strikes . | . . . . . . . . . . . . . . . . . . . . . . Average Slot Usage (%) 64 | . 99 89 99 99 98 96 53 45 46 51 51 51 51 51 53 51 53 52 52 48 52 Engine 4 | . 13 4 10 11 9 9 5 2 5 3 1 . . . 1 . . . . . . Core 2 | . . . . . . . 2 3 . 1 3 5 5 . 4 2 . . 1 5 5 Treads 10 | . 26 28 33 29 31 35 2 . . . 3 5 5 3 . 4 2 . . . . Hover 1 | . . . . . . . 7 4 . 3 1 . . 1 3 . . 5 5 5 5 Device 11 | . 3 14 2 . 5 6 9 13 13 20 18 16 16 16 14 16 14 15 15 11 15 Storage 6 | . 14 14 11 11 9 9 8 . . . . 4 5 5 5 5 5 5 5 5 5 Processor 3 | . . . . . . . . 5 6 5 5 5 5 5 5 5 5 5 5 5 5 Protection 4 | . 10 . 19 22 11 8 . . . 1 4 . . . 4 4 5 4 4 4 5 Energy Cannon 2 | . . . . . . . 3 2 5 5 4 5 5 3 5 4 4 1 . . . Ballistic Gun 8 | . 28 27 21 22 26 19 11 . . . . . . . . . . . . . . Ballistic Cannon 1 | . . . . . . 7 . 9 5 3 . . . 1 . . 1 3 5 5 5 Launcher 1 | . . 1 . . . . . . . . 5 5 5 3 2 5 5 . . . 1 Naked Turns . | . . . . . . . . . . . . . . . . . . . . . . Heaviest Build 115 | 12 91 90 101 103 112 115 111 39 52 54 61 69 72 78 70 71 92 94 94 94 97 Greatest Support 235 | 20 40 40 60 60 80 80 80 70 64 103 180 180 235 164 189 189 163 82 74 74 74 Greatest Overweight (x) 23 | . 5 2 1 9 2 1 2 . 1 1 . . 23 . . . 1 1 1 1 1 Average Overweight (x) 1 | . 2 2 1 1 1 1 1 . . . . . 15 . . . . 1 1 1 1 Largest Inventory Capacity 25 | 8 25 25 25 25 25 25 25 5 5 5 5 15 15 15 15 15 15 15 15 15 15 Average Capacity 17 | 7 24 25 25 25 25 25 23 5 5 5 5 13 15 15 15 15 15 15 15 15 15 Most Carried 25 | 8 25 25 25 25 25 25 25 5 5 5 5 15 15 15 15 15 15 15 15 15 14 Average Carried 16 | 4 21 24 24 24 24 24 16 4 4 4 4 11 14 14 14 14 14 14 14 14 14 Final Capacity 25 | 8 25 25 25 25 25 25 5 5 5 5 5 15 15 15 15 15 15 15 15 15 15 Final Carried 25 | 8 25 25 25 25 25 25 5 5 5 5 5 15 15 13 15 15 15 15 15 14 14 Scrap Engine Consumption 303 | . . . . . . . 58 25 33 27 34 7 6 17 39 14 36 2 3 2 . Constructs Created 3 | . . . . . . . 3 . . . . . . . . . . . . . . Constructs Modified 138 | . . . . . . . 22 9 17 11 19 . 8 8 15 9 15 3 2 . . Class Distribution -------------------- 40% | Construct 24% | Commander-Construct 10% | Mutant 8% | Scavenger-Tank 7% | Scavenger-Mutant 4% | Scavenger-Construct Dominant Class ---------------- Mutant | -10/Materials Mutant | -10/Mines Scavenger-Mutant | -9/Materials Scavenger-Mutant | -9/Mines Scavenger-Tank | -8/Materials Tank | -8/Storage Construct | -8/Recycling Construct | -6/Factory Construct | -6/Garrison Construct | -5/Factory Construct | -5/Extension Construct | -5/Cetus Commander-Construct | -5/Archives Construct | -5/Hub_04(d) Construct | -4/Factory Construct | -4/Waste Construct | -4/Factory Construct | -4/Upper Caves Scavenger-Construct | -4/Upper Caves Construct | -4/Zhirov Scavenger-Construct | -3/Proximity Caves Resources | -11 -10 -10 -9 -9 -8 -8 -8 -6 -6 -5 -5 -5 -5 -5 -4 -4 -4 -4 -4 -4 -3 ----------- Run | Jun Mat Min Mat Min Mat Sto Rec Fac Gar Fac Ext Cet Arc Hub Fac Was Fac Upp Upp Zhi Pro Matter Collected 9268 | 314 630 110 1035 272 1146 1531 505 194 683 189 462 85 65 97 876 159 390 200 214 111 . Remotely 179 | . . . . . . . . . . . . . . . . 159 20 . . . . Salvage Created 22711 | 135 572 182 1874 315 1770 2351 1569 557 1491 1001 1445 745 571 1710 1481 1732 1746 426 570 192 276 Parts 1006 | 13 34 10 103 30 108 104 57 41 77 47 56 21 25 89 72 35 51 3 23 2 5 Haulers Intercepted 27 | . 2 . 5 . 4 6 2 . . 2 . . . 1 2 . 3 . . . . Recyclers Shooed 28 | 1 1 . 6 . 3 5 11 . . . 1 . . . . . . . . . . Parts Field Recycled . | . . . . . . . . . . . . . . . . . . . . . . Retrieved Matter . | . . . . . . . . . . . . . . . . . . . . . . Parts Self-Destructed 26 | . . . . . . . . . . . . . . . . . . 2 20 1 3 Prevented 1 | . . . . . . . . . . . . . . . . . . 1 . . . Kills | -11 -10 -10 -9 -9 -8 -8 -8 -6 -6 -5 -5 -5 -5 -5 -4 -4 -4 -4 -4 -4 -3 ------- Run | Jun Mat Min Mat Min Mat Sto Rec Fac Gar Fac Ext Cet Arc Hub Fac Was Fac Upp Upp Zhi Pro Combat Hostiles Destroyed 339 | . 11 6 25 12 27 36 10 13 39 24 21 13 3 20 36 6 18 5 9 . 5 Melee 1 | . . . . . . . . . . . 1 . . . . . . . . . . Guns 102 | . 10 3 25 12 21 23 8 . . . . . . . . . . . . . . Cannons 142 | . . . . . . 6 2 6 25 12 14 5 . 19 21 6 13 3 7 . 3 AOE 79 | . 1 3 . . 6 7 . 7 14 12 6 4 . 1 14 . . . 2 . 2 Classes Destroyed 20 | 2 5 1 2 . 1 2 1 . 1 . 3 . . 1 . 1 . . . . . Worker 11 | . 2 . 1 . 4 1 . 2 . 1 . . . . . . . . . . . Builder 4 | . . . 1 . . 1 . 1 . . . . . 1 . . . . . . . Tunneler 6 | 3 . . . . 1 . 2 . . . . . . . . . . . . . . Hauler 27 | . 2 . 5 . 4 6 2 . . 2 . . . 1 2 . 3 . . . . Recycler 30 | 1 1 . 5 . 4 5 8 1 . . 2 . . 2 . . 1 . . . . Operator 13 | . . . . . . 1 . 1 . . . . 9 1 1 . . . . . . Watcher 16 | . 2 . 2 . 2 2 . 2 . 2 . 1 . 1 . . 2 . . . . Swarmer 77 | . 4 3 . 7 7 . . 7 16 5 . 4 . . 23 . . . . . 1 Saboteur 1 | . . . . . . . . . . . 1 . . . . . . . . . . Grunt 135 | . 7 2 19 5 10 22 3 3 10 14 9 . . 7 8 . 6 3 6 . 1 Brawler 11 | . . . 1 . . 1 . . 5 1 . . . . . . . . 1 . 2 Duelist 3 | . . . . . . 1 . . . . 1 . . 1 . . . . . . . Protector 2 | . . . . . . . . . . . 1 . . 1 . . . . . . . Sentry 56 | . . 1 5 . 8 11 5 . 3 2 4 . 3 4 1 . 7 1 . . 1 Specialist 1 | . . . . . . . . . 1 . . . . . . . . . . . . Hunter 10 | . . . . . 2 1 . 2 . . . . . 3 . . 2 . . . . Programmer 22 | . . . . . . . 2 1 3 2 1 1 . 3 4 . 2 1 2 . . Heavy 2 | . . . . . . . . . . . . . . 1 . . 1 . . . . Behemoth 2 | . . . . . . . . . . . 2 . . . . . . . . . . Compactor 6 | . . . . . . . . . . . . . . . . 6 . . . . . Cetus Guard 8 | . . . . . . . . . . . . 8 . . . . . . . . . Enhanced Grunt 1 | . . . . . . . . . . . . . . . . . . . . 1 . Butcher 1 | . . . . . . . . . . . 1 . . . . . . . . . . Guerrilla 1 | . . . . . . . . . . . 1 . . . . . . . . . . Infiltrator 1 | . . . . . . . . . 1 . . . . . . . . . . . . Best Kill Streak 11 | 2 3 5 4 4 7 8 4 11 5 5 8 4 3 4 6 3 4 4 3 . 5 Combat Bots Only 6 | . 3 5 4 4 6 6 4 5 5 5 6 4 3 3 6 3 3 3 3 . 5 Max Kills in Single Turn 5 | 1 1 2 2 1 3 3 2 4 3 5 3 4 1 1 5 1 1 1 1 1 2 Gunslinging 1 | . . . 1 . . . 1 . . . . . . . . . . . . . . Exploded 5 | . 1 2 . . 3 2 . 3 3 5 3 4 . 1 5 . . . 1 . 2 Melee 1 | . . . . . . . . . . . 1 . . . . . . . . . . Uniques/NPCs Destroyed . | . . . . . . . . . . . . . . . . . . . . . . Combat | -11 -10 -10 -9 -9 -8 -8 -8 -6 -6 -5 -5 -5 -5 -5 -4 -4 -4 -4 -4 -4 -3 -------- Run | Jun Mat Min Mat Min Mat Sto Rec Fac Gar Fac Ext Cet Arc Hub Fac Was Fac Upp Upp Zhi Pro Damage Taken 21620 | . 650 230 1210 583 1469 1311 296 257 1918 1343 1668 299 273 3746 1586 . 1042 455 1541 854 889 Core 2891 | . 192 49 104 39 156 101 32 36 251 147 129 21 . 475 235 . 129 98 193 86 418 Absorbed by Shields 776 | . . 89 171 . 280 12 . . 22 102 100 . . . . . . . . . . Regen/Repaired (Parts) 7968 | . . . . . 116 . 145 75 1473 321 1412 . 533 1058 1421 264 476 229 345 100 . Core Remaining (%) 50 | 100 . 3 . 64 . . 47 . 66 . . . . 22 . . . . . . . Volleys Fired 1188 | 11 65 16 125 28 101 86 71 22 133 58 64 20 28 82 79 94 48 12 23 6 16 Largest 3 | 2 2 2 2 2 3 3 3 2 2 1 1 1 1 2 1 1 1 1 1 1 1 Hottest 492 | 40 40 40 68 46 69 97 126 305 327 384 492 231 231 312 168 168 426 486 486 486 486 Shots Fired 1847 | 22 129 30 250 56 294 235 127 32 143 58 64 20 27 84 78 93 48 12 23 6 16 Gun 1049 | 22 128 28 250 56 290 171 100 . . . . . . 4 . . . . . . . Cannon 742 | . . . . . . 58 27 28 131 49 56 19 27 80 74 93 48 12 21 6 13 Launcher 56 | . 1 2 . . 4 6 . 4 12 9 8 1 . . 4 . . . 2 . 3 Special . | . . . . . . . . . . . . . . . . . . . . . . Kinetic 1415 | 22 128 28 249 56 290 229 99 22 114 40 1 . 1 24 43 1 26 2 21 6 13 Thermal 267 | . . . . . . . . 3 17 7 53 . 21 60 14 92 . . . . . Explosive 56 | . 1 2 . . 4 6 . 4 12 9 8 1 . . 4 . . . 2 . 3 Electromagnetic 109 | . . . 1 . . . 28 3 . 2 2 19 5 . 17 . 22 10 . . . Robot Hit Streak 23 | 5 12 11 16 11 9 13 17 5 8 17 18 11 6 11 16 8 23 5 4 5 7 Robot Miss Streak 7 | 2 5 2 4 2 7 5 4 2 7 2 3 2 2 4 2 4 1 1 2 2 6 Penetration Max 2 | . . . . . . 1 . . . . . . . 1 . . . . 2 1 . Secondary Targets 16 | . 1 . 5 3 5 . 2 . . . . . . . . . . . . . . Max Gunslinging Chain 1 | . 1 . 1 1 1 . 1 . . . . . . . . . . . . . . Shots Hit Robots 1205 | 12 78 23 169 41 184 152 85 17 78 43 44 15 19 56 53 57 42 9 16 4 8 Core Hits 658 | 5 36 13 63 17 80 93 34 30 64 52 45 10 7 26 34 6 17 4 8 3 11 Critical Kills 9 | . . . . . 1 1 . . . . . . 2 4 1 . . . . . . Critical Parts Destroyed 22 | . 1 1 2 . . 1 1 . . . . 2 5 8 . . 1 . . . . Critical Strikes 37 | . 1 1 2 . 1 2 1 1 1 . . 3 7 14 1 . 2 . . . . Destroy 34 | . 1 1 2 . 1 2 1 . . . . 3 7 14 1 . 1 . . . . Blast 2 | . . . . . . . . 1 1 . . . . . . . . . . . . Corrupt 1 | . . . . . . . . . . . . . . . . . 1 . . . . Melee Attacks 20 | . . . . . 1 5 . . 12 . . . . . 1 . 1 . . . . Impact 18 | . . . . . 1 5 . . 12 . . . . . . . . . . . . Slashing . | . . . . . . . . . . . . . . . . . . . . . . Piercing 1 | . . . . . . . . . . . . . . . . . 1 . . . . Sneak Attacks 1 | . . . . . . . . . . . . . . . 1 . . . . . . Combat Hostiles . | . . . . . . . . . . . . . . . . . . . . . . Follow-up Attacks . | . . . . . . . . . . . . . . . . . . . . . . Damage Inflicted 57613 | 126 947 412 2600 638 2708 3768 1741 1587 4646 4387 4501 1690 1833 5627 5457 5702 3979 1065 2499 701 999 Guns 9981 | 126 824 249 2533 619 2363 2197 1047 . . . . . . 23 . . . . . . . Cannons 37624 | . . . . . . 782 686 717 3337 2350 2931 1386 1833 5515 3856 5702 3979 1065 2180 701 604 Explosions 9654 | . 95 159 . . 317 757 . 870 1246 2018 1484 304 . 89 1601 . . . 319 . 395 Melee 63 | . . . . . . . . . 63 . . . . . . . . . . . . Ramming 291 | . 28 4 67 19 28 32 8 . . 19 86 . . . . . . . . . . Kinetic 26785 | 126 824 249 2510 619 2363 2979 1035 553 3117 2147 . . 121 1409 2828 . 2138 282 2180 701 604 Thermal 15199 | . . . . . . . . 70 220 50 2670 . 1399 4218 870 5702 . . . . . Explosive 8947 | . 95 159 . . 317 757 . 776 1246 2018 1484 304 . . 1077 . . . 319 . 395 Electromagnetic 6328 | . . . 23 . . . 698 188 . 153 261 1386 313 . 682 . 1841 783 . . . Impact 63 | . . . . . . . . . 63 . . . . . . . . . . . . Slashing . | . . . . . . . . . . . . . . . . . . . . . . Piercing . | . . . . . . . . . . . . . . . . . . . . . . Highest Corruption 31 | . . . 8 8 . 1 1 . 3 . 3 3 3 31 3 3 . 1 2 . . Average Corruption 2 | . . . 6 8 . 1 1 . 2 . 2 3 2 17 2 2 . 1 1 . . Corruption Purged 9 | . . . . . . . . . . . . . 3 . . 3 . 1 2 . . Corruption Blocked . | . . . . . . . . . . . . . . . . . . . . . . Effects 167 | . . . 36 29 . 5 30 . 3 . 9 4 3 14 13 16 . 3 2 . . Message Errors 39 | . . . 6 9 . 1 11 . . . . 1 . . 2 7 . 2 . . . Matter Fused 39 | . . . 10 8 . . 6 . 3 . 2 1 . 2 4 2 . . 1 . . Heat Flow Errors 20 | . . . 4 5 . 1 3 . . . 4 . 1 1 . 1 . . . . . Energy Discharges 20 | . . . 4 1 . 2 2 . . . 2 . 1 3 2 2 . 1 . . . Parts Rejected 5 | . . . . . . . 1 . . . . 1 . 2 1 . . . . . . Parts Fused 3 | . . . 1 1 . . . . . . . . . 1 . . . . . . . Data Loss (minor) 19 | . . . 7 1 . . 2 . . . . 1 . 2 2 3 . . 1 . . Data Loss (major) 10 | . . . 3 2 . . 3 . . . 1 . . . 1 . . . . . . Misfires 4 | . . . . 1 . 1 1 . . . . . . 1 . . . . . . . Alerts 3 | . . . 1 1 . . 1 . . . . . . . . . . . . . . Weapon Failures 5 | . . . . . . . . . . . . . 1 2 1 1 . . . . . Overload Shots . | . . . . . . . . . . . . . . . . . . . . . . Overflow Damage 4063 | . 6 . 1 . 7 9 95 122 74 228 155 211 459 480 701 22 617 183 554 139 . Projectiles 3812 | . . . . . . 1 95 66 47 115 154 211 459 480 669 22 617 183 554 139 . Explosions 222 | . 6 . . . 1 8 . 56 5 113 1 . . . 32 . . . . . . Melee 29 | . . . 1 . 6 . . . 22 . . . . . . . . . . . . Knockbacks 79 | . 1 . 1 . . 11 . 5 17 9 . . . 8 16 . 5 . 5 1 . Impact 3 | . 1 . 1 . . . . . . 1 . . . . . . . . . . . Kinetic 68 | . . . . . . 10 . 3 15 7 . . . 7 16 . 5 . 4 1 . Secondary 8 | . . . . . . 1 . 2 2 1 . . . 1 . . . . 1 . . Self-Inflicted Damage 481 | . 14 29 . . 15 54 4 . 171 . . . . 47 147 . . . . . . Shots 14 | . 1 1 . . 1 2 . . 6 . . . . 1 2 . . . . . . Rammed 28 | . 7 1 6 1 . 4 1 . . . 8 . . . . . . . . . . Targets Rammed 32 | . 8 1 6 1 1 4 1 . . 2 8 . . . . . . . . . . Kicked 2 | . . . . . . . . . . 2 . . . . . . . . . . . Crushed 2 | . 1 . . . 1 . . . . . . . . . . . . . . . . Highest Temperature 4648 | . 56 4 274 230 192 360 232 157 234 297 417 224 187 396 396 326 372 468 1379 754 4648 Average Temperature 145 | . 8 4 60 87 52 85 56 81 93 115 163 103 74 111 81 138 93 169 312 246 2191 Received Heat Transfer 4625 | . 252 52 548 201 476 613 108 18 402 506 453 . 27 291 138 . 99 42 290 . 109 Effects 59 | . . . . . . . . . . . 3 . . 2 . 1 . 1 16 9 27 Shutdowns 14 | . . . . . . . . . . . 2 . . . . . . . 4 3 5 Energy Bleed 12 | . . . . . . . . . . . 1 . . 2 . 1 . . 3 3 2 Interference 9 | . . . . . . . . . . . . . . . . . . 1 4 1 3 Matter Decay 7 | . . . . . . . . . . . . . . . . . . . 1 1 5 Short Circuit 2 | . . . . . . . . . . . . . . . . . . . 1 1 . Damage (minor) 3 | . . . . . . . . . . . . . . . . . . . . . 3 Damage (major) 9 | . . . . . . . . . . . . . . . . . . . 2 . 7 Damage (core) 3 | . . . . . . . . . . . . . . . . . . . 1 . 2 Siege Activations . | . . . . . . . . . . . . . . . . . . . . . . Robots Corrupted 19 | . . . . . . . 1 1 . 1 . 4 3 . 2 . 5 2 . . . Combat Hostiles 16 | . . . . . . . 1 . . . . 4 3 . 1 . 5 2 . . . Parts Fried 56 | . . . . . 2 . 4 . . 2 2 14 2 2 6 . 11 11 . . . Impact Corruptions 4 | . . . 1 . 1 . . . 2 . . . . . . . . . . . . Robots Melted . | . . . . . . . . . . . . . . . . . . . . . . Combat Hostiles . | . . . . . . . . . . . . . . . . . . . . . . Parts Melted 3 | . . . . . . . . . . . 1 . . . 1 1 . . . . . Heat Transferred 4911 | . . . . . . . . 50 185 74 1543 . . 119 535 2405 . . . . . Parts Sabotaged . | . . . . . . . . . . . . . . . . . . . . . . Parts Stolen . | . . . . . . . . . . . . . . . . . . . . . . Parts Stripped . | . . . . . . . . . . . . . . . . . . . . . . Power Chain Reactions 5 | . . . . . . . . . . . . . . 2 3 . . . . . . Missiles Intercepted . | . . . . . . . . . . . . . . . . . . . . . . Alert | -11 -10 -10 -9 -9 -8 -8 -8 -6 -6 -5 -5 -5 -5 -5 -4 -4 -4 -4 -4 -4 -3 ------- Run | Jun Mat Min Mat Min Mat Sto Rec Fac Gar Fac Ext Cet Arc Hub Fac Was Fac Upp Upp Zhi Pro Peak Influence 2140 | 20 343 165 371 253 451 776 296 596 2140 1870 2135 1473 759 809 981 386 518 . . . . Initial 1131 | . 13 22 64 117 8 149 261 388 412 1123 1100 1131 521 18 391 313 . . . . . Average 408 | 5 123 140 257 162 256 589 62 439 1497 1359 1703 1265 171 606 740 146 274 . . . . Maximum Alert Level 5 | . 1 . 1 1 2 3 1 2 5 5 5 4 3 3 3 1 2 . . . . Low Security (%) 48 | 100 87 100 15 85 35 1 89 . . . . . 73 2 . 74 42 . . . . Level 1 19 | . 12 . 84 14 59 10 10 4 . . . . 13 1 7 25 34 . . . . Level 2 13 | . . . . . 4 60 . 95 7 . . . 9 75 25 . 23 . . . . Level 3 7 | . . . . . . 27 . . 10 . 8 . 3 20 67 . . . . . . Level 4 5 | . . . . . . . . . 27 88 24 100 . . . . . . . . . Level 5 5 | . . . . . . . . . 54 . 66 . . . . . . . . . . High Security . | . . . . . . . . . . 10 . . . . . . . . . . . Max Security . | . . . . . . . . . . . . . . . . . . . . . . Squads Dispatched 51 | . 3 . 4 . 3 5 . 4 . 5 6 . . 11 6 . 4 . . . . Investigation 10 | . 1 . 2 . 1 1 . 1 . 1 1 . . 1 . . 1 . . . . Extermination 6 | . . . . . . . . 1 . 1 . . . 1 2 . 1 . . . . Reinforcement 24 | . 2 . 2 . 1 3 . 2 . 2 2 . . 7 2 . 1 . . . . Assault 10 | . . . . . . 1 . . . 1 3 . . 2 2 . 1 . . . . Garrison 1 | . . . . . 1 . . . . . . . . . . . . . . . . Intercept . | . . . . . . . . . . . . . . . . . . . . . . Searches Triggered 1 | . . . . . . . . 1 . . . . . . . . . . . . . Construction Impeded 2 | . . . . . . . . 1 . . 1 . . . . . . . . . . Haulers Reinforced 2 | . . . . . . . . . . 1 . . . 1 . . . . . . . Active Scanning Responses . | . . . . . . . . . . . . . . . . . . . . . . Cargo Convoy Interrupts . | . . . . . . . . . . . . . . . . . . . . . . Stealth | -11 -10 -10 -9 -9 -8 -8 -8 -6 -6 -5 -5 -5 -5 -5 -4 -4 -4 -4 -4 -4 -3 --------- Run | Jun Mat Min Mat Min Mat Sto Rec Fac Gar Fac Ext Cet Arc Hub Fac Was Fac Upp Upp Zhi Pro Distress Signals 25 | . 1 . 4 . 4 4 . 1 . 1 2 2 . 4 . . 2 . . . . Communications Jammed 4 | . . . . . . . . . . . . . . . 4 . . . . . . Distress Signals 4 | . . . . . . . . . . . . . . . 4 . . . . . . Times Spotted 560 | . 42 7 45 13 48 45 7 22 40 34 54 16 17 61 50 11 30 4 9 . 5 Peak Tracking Total 14 | . 9 5 5 4 7 6 4 6 6 10 14 5 3 11 6 6 5 2 4 . 5 Tactical Retreats 28 | . 2 . 4 1 1 1 . 1 3 2 1 . . 6 1 3 2 . . . . Traps | -11 -10 -10 -9 -9 -8 -8 -8 -6 -6 -5 -5 -5 -5 -5 -4 -4 -4 -4 -4 -4 -3 ------- Run | Jun Mat Min Mat Min Mat Sto Rec Fac Gar Fac Ext Cet Arc Hub Fac Was Fac Upp Upp Zhi Pro Traps Triggered 16 | . . . 1 . . 1 . . 8 . 2 . . 1 2 . 1 . . . . Indirectly . | . . . . . . . . . . . . . . . . . . . . . . Trap Hack Attempts . | . . . . . . . . . . . . . . . . . . . . . . Triggered . | . . . . . . . . . . . . . . . . . . . . . . Disarmed . | . . . . . . . . . . . . . . . . . . . . . . Reprogrammed . | . . . . . . . . . . . . . . . . . . . . . . Reused . | . . . . . . . . . . . . . . . . . . . . . . Traps Extracted . | . . . . . . . . . . . . . . . . . . . . . . Installed . | . . . . . . . . . . . . . . . . . . . . . . Triggered . | . . . . . . . . . . . . . . . . . . . . . . Machines | -11 -10 -10 -9 -9 -8 -8 -8 -6 -6 -5 -5 -5 -5 -5 -4 -4 -4 -4 -4 -4 -3 ---------- Run | Jun Mat Min Mat Min Mat Sto Rec Fac Gar Fac Ext Cet Arc Hub Fac Was Fac Upp Upp Zhi Pro Machines Disabled 48 | . . . . . . 5 . 2 16 4 2 2 2 4 7 . 3 . . 1 . Max in Single Turn 3 | . . . . . . 1 . 1 1 2 1 1 1 1 3 . 1 . . 1 . Garrison Access 4 | . . . . . . 1 . . . . . . . 1 1 . 1 . . . . Garrison Relay 4 | . . . . . . . . . 4 . . . . . . . . . . . . Network Hub 1 | . . . . . . . . . . . . . . 1 . . . . . . . Machines Repaired . | . . . . . . . . . . . . . . . . . . . . . . Machines Sabotaged . | . . . . . . . . . . . . . . . . . . . . . . Overloaded Fab Kills . | . . . . . . . . . . . . . . . . . . . . . . Hacking | -11 -10 -10 -9 -9 -8 -8 -8 -6 -6 -5 -5 -5 -5 -5 -4 -4 -4 -4 -4 -4 -3 --------- Run | Jun Mat Min Mat Min Mat Sto Rec Fac Gar Fac Ext Cet Arc Hub Fac Was Fac Upp Upp Zhi Pro Machines Accessed 95 | . 6 . 7 1 7 7 11 4 2 5 11 1 . 7 9 . 10 . . 7 . Terminals 64 | . 5 . 4 1 4 5 5 3 2 5 11 1 . 6 7 . 5 . . . . Fabricators . | . . . . . . . . . . . . . . . . . . . . . . Repair Stations 2 | . . . . . 1 . . . . . . . . . 1 . . . . . . Recycling Units 15 | . 1 . 2 . 2 1 6 . . . . . . . . . 3 . . . . Scanalyzers 2 | . . . 1 . . . . . . . . . . . . . 1 . . . . Garrison Access 5 | . . . . . . 1 . 1 . . . . . 1 1 . 1 . . . . Total Hacks 262 | . 15 . 19 4 18 16 25 10 4 9 23 2 . 15 30 . 26 . . 46 . Successful 117 | . 4 . 9 1 5 3 14 3 1 2 6 . . 2 14 . 7 . . 46 . Failed 143 | . 10 . 9 3 13 13 11 7 3 7 17 2 . 13 16 . 19 . . . . Catastrophic 39 | . 1 . 4 . 3 2 4 1 . 5 2 1 . 3 5 . 8 . . . . Database Lockouts 2 | . 1 . 1 . . . . . . . . . . . . . . . . . . Manual 78 | . 6 . 10 4 6 5 12 . . 2 9 1 . 3 17 . 3 . . . . Terminals 159 | . 12 . 13 4 10 12 10 8 4 9 23 2 . 11 26 . 15 . . . . Fabricators . | . . . . . . . . . . . . . . . . . . . . . . Repair Stations 8 | . . . . . 5 . . . . . . . . . 3 . . . . . . Recycling Units 35 | . 3 . 4 . 3 2 15 . . . . . . . . . 8 . . . . Scanalyzers 4 | . . . 2 . . . . . . . . . . . . . 2 . . . . Garrison Access 10 | . . . . . . 2 . 2 . . . . . 4 1 . 1 . . . . Terminal Hacks 87 | . 2 . 5 1 1 2 3 2 1 2 6 . . 2 10 . 4 . . 46 . Record 34 | . . . . . . . . . . . . . . . . . . . . 34 . Part Schematic 7 | . 1 . 1 . . . 1 . . . . . . . . . . . . 4 . Robot Analysis 7 | . . . 1 1 . . . 1 . . . . . . . . . . . 4 . Prototype ID Bank 8 | . . . . . . . 1 1 . 1 . . . . 1 . . . . 4 . Open Door 4 | . . . . . . 1 . . . . 3 . . . . . . . . . . Open DSF 1 | . . . . . . . . . . . . . . . 1 . . . . . . Branch Access Points 4 | . . . 1 . 1 . . . . . . . . . 1 . 1 . . . . Emergency Access Points 1 | . . . 1 . . . . . . . . . . . . . . . . . . Garrison Index 1 | . . . . . . . . . . 1 . . . . . . . . . . . Unreport Threat 10 | . . . . . . 1 . . . . 2 . . 2 3 . 2 . . . . Locate Traps 2 | . . . . . . . . . . . 1 . . . 1 . . . . . . Dispatch Records 1 | . . . . . . . . . . . . . . . 1 . . . . . . Hauler Manifests 3 | . 1 . . . . . . . . . . . . . 1 . 1 . . . . Registered Prototypes 1 | . . . . . . . 1 . . . . . . . . . . . . . . Zone Layout 2 | . . . 1 . . . . . . . . . . . 1 . . . . . . Patrol Navigation 1 | . . . . . . . . . 1 . . . . . . . . . . . . Fabricator Hacks . | . . . . . . . . . . . . . . . . . . . . . . Repair Station Hacks 6 | . . . . . 4 . . . . . . . . . 2 . . . . . . Scan Component 3 | . . . . . 2 . . . . . . . . . 1 . . . . . . Repair 3 | . . . . . 2 . . . . . . . . . 1 . . . . . . Recycling Unit Hacks 10 | . 1 . 2 . . . 5 . . . . . . . . . 2 . . . . Retrieve Components 10 | . 1 . 2 . . . 5 . . . . . . . . . 2 . . . . Scanalyzer 2 | . . . 2 . . . . . . . . . . . . . . . . . . Insert Component 2 | . . . 2 . . . . . . . . . . . . . . . . . . Garrison Access Hacks 2 | . . . . . . 1 . 1 . . . . . . . . . . . . . Unlock Access 1 | . . . . . . . . 1 . . . . . . . . . . . . . Seal Access 1 | . . . . . . 1 . . . . . . . . . . . . . . . Unauthorized Hacks 10 | . 1 . . . . . 6 . . . . . . . 2 . 1 . . . . Terminals 2 | . . . . . . . . . . . . . . . 2 . . . . . . Track 1 | . . . . . . . . . . . . . . . 1 . . . . . . Botnet 1 | . . . . . . . . . . . . . . . 1 . . . . . . Fabricators . | . . . . . . . . . . . . . . . . . . . . . . Repair Stations . | . . . . . . . . . . . . . . . . . . . . . . Recycling Units 8 | . 1 . . . . . 6 . . . . . . . . . 1 . . . . Reject 1 | . . . . . . . . . . . . . . . . . 1 . . . . Tunnel 7 | . 1 . . . . . 6 . . . . . . . . . . . . . . Scanalyzers . | . . . . . . . . . . . . . . . . . . . . . . Garrison Access . | . . . . . . . . . . . . . . . . . . . . . . Data Cores Recovered 2 | . . . . . . . . . . . . . . 1 1 . . . . . . Used 2 | . . . . . . . . . . . . . . 1 1 . . . . . . Hacking Detections 74 | . 4 . 5 1 7 7 7 4 1 5 10 1 . 7 6 . 9 . . . . Full Trace Events 7 | . . . . . 1 1 . 1 . 1 1 . . 1 . . 1 . . . . Feedback Events . | . . . . . . . . . . . . . . . . . . . . . . Feedback Blocked . | . . . . . . . . . . . . . . . . . . . . . . Robot Schematics Acquired . | . . . . . . . . . . . . . . . . . . . . . . Robots Built . | . . . . . . . . . . . . . . . . . . . . . . Authchips . | . . . . . . . . . . . . . . . . . . . . . . Time . | . . . . . . . . . . . . . . . . . . . . . . Total Robot Build Rating . | . . . . . . . . . . . . . . . . . . . . . . Part Schematics Acquired 7 | . 1 . 1 . . . 1 . . . . . . . . . . . . 4 . Parts Built . | . . . . . . . . . . . . . . . . . . . . . . Authchips . | . . . . . . . . . . . . . . . . . . . . . . Time . | . . . . . . . . . . . . . . . . . . . . . . Total Part Build Rating . | . . . . . . . . . . . . . . . . . . . . . . Parts Repaired 3 | . . . . . 2 . . . . . . . . . 1 . . . . . . Time 95 | . . . . . 70 . . . . . . . . . 25 . . . . . . Parts Recycled . | . . . . . . . . . . . . . . . . . . . . . . Recycled Matter . | . . . . . . . . . . . . . . . . . . . . . . Retrieved Matter . | . . . . . . . . . . . . . . . . . . . . . . Retrieved Components 23 | . 2 . 9 . . . 5 . . . . . . . . . 7 . . . . Parts Scanalyzed . | . . . . . . . . . . . . . . . . . . . . . . Part Schematics Acquired . | . . . . . . . . . . . . . . . . . . . . . . Parts Damaged . | . . . . . . . . . . . . . . . . . . . . . . Bothacking | -11 -10 -10 -9 -9 -8 -8 -8 -6 -6 -5 -5 -5 -5 -5 -4 -4 -4 -4 -4 -4 -3 ------------ Run | Jun Mat Min Mat Min Mat Sto Rec Fac Gar Fac Ext Cet Arc Hub Fac Was Fac Upp Upp Zhi Pro Used RIF Installer . | . . . . . . . . . . . . . . . . . . . . . . Robots Hacked 1 | . . . . . . . . . . . . . . . 1 . . . . . . Non-combat 1 | . . . . . . . . . . . . . . . 1 . . . . . . Combat . | . . . . . . . . . . . . . . . . . . . . . . Robot Hacks Applied 1 | . . . . . . . . . . . . . . . 1 . . . . . . no_distress 1 | . . . . . . . . . . . . . . . 1 . . . . . . Relay Couplers Released 22 | . . . . . . . . . 15 . . . . 3 2 . 2 . . . . Machine Destruction 19 | . . . . . . . . . 15 . . . . . 2 . 2 . . . . Programmers 3 | . . . . . . . . . . . . . . 3 . . . . . . . Fabnet Peak Effective % . | . . . . . . . . . . . . . . . . . . . . . . Robots Rewired 15 | . . . . . . . . . . . 15 . . . . . . . . . . Allies Hacked 1 | . . . . . . . . . 1 . . . . . . . . . . . . Hacks Repelled . | . . . . . . . . . . . . . . . . . . . . . . Allies | -11 -10 -10 -9 -9 -8 -8 -8 -6 -6 -5 -5 -5 -5 -5 -4 -4 -4 -4 -4 -4 -3 -------- Run | Jun Mat Min Mat Min Mat Sto Rec Fac Gar Fac Ext Cet Arc Hub Fac Was Fac Upp Upp Zhi Pro Total Allies 30 | . . . . . . . . . 2 . 22 5 . . . 1 . . . . . Largest Group 9 | . . . . . . . . . 2 . 9 5 4 4 . 1 . . . . . Highest-Rated Group 480 | . . . . . . . . . 190 . 375 480 384 384 . 46 . . . . . Highest-Rated Ally 159 | . . . . . . . . . 95 . 159 131 96 96 . 46 . . . . . Total Orders . | . . . . . . . . . . . . . . . . . . . . . . Ally Attacks 283 | . . . . . . . . . 2 . 187 17 18 51 . 8 . . . . . Total Damage 9064 | . . . . . . . . . 146 . 4888 474 518 2787 . 251 . . . . . Kills 47 | . . . . . . . . . . . 31 2 1 13 . . . . . . . Allies Corrupted 2 | . . . . . . . . . 1 . . 1 . . . . . . . . . Allies Melted . | . . . . . . . . . . . . . . . . . . . . . . Intel | -11 -10 -10 -9 -9 -8 -8 -8 -6 -6 -5 -5 -5 -5 -5 -4 -4 -4 -4 -4 -4 -3 ------- Run | Jun Mat Min Mat Min Mat Sto Rec Fac Gar Fac Ext Cet Arc Hub Fac Was Fac Upp Upp Zhi Pro Robot Analysis Total 7 | . . . 1 1 . . . 1 . . . . . . . . . . . 4 . Derelict Logs Recovered 2 | . . . . . . . . . . . . . . . . . . 1 1 . . Drone Launches . | . . . . . . . . . . . . . . . . . . . . . . Drone Recoveries . | . . . . . . . . . . . . . . . . . . . . . . Exploration | -11 -10 -10 -9 -9 -8 -8 -8 -6 -6 -5 -5 -5 -5 -5 -4 -4 -4 -4 -4 -4 -3 ------------- Run | Jun Mat Min Mat Min Mat Sto Rec Fac Gar Fac Ext Cet Arc Hub Fac Was Fac Upp Upp Zhi Pro Turns Passed 39038 | 131 2321 286 2615 829 2472 2573 4837 496 2176 804 1044 508 9101 1163 1605 1574 1064 1025 1210 892 312 Spaces Moved 15434 | 67 705 66 762 265 763 900 1548 635 1765 879 671 252 1026 681 1151 769 1130 507 491 269 132 Core 695 | 8 . . . . . . . . . . . . 687 . . . . . . . . Treads 6164 | 32 550 66 762 260 763 900 83 . . 6 450 252 339 500 61 514 626 . . . . Legs 1509 | . . . . 5 . . . . 1154 307 43 . . . . . . . . . . Wheels 511 | 27 155 . . . . . . . . . . . . . 329 . . . . . . Hover 5022 | . . . . . . . 1458 456 20 566 178 . . 181 761 . 3 507 491 269 132 Flight 1533 | . . . . . . . 7 179 591 . . . . . . 255 501 . . . . Fastest Speed 40 | 50 100 320 240 240 240 240 63 41 41 48 60 171 147 90 90 57 40 168 198 198 198 Average Speed 191 | 122 282 320 240 270 246 241 178 55 85 52 98 171 853 131 90 78 47 186 198 198 198 Slowest Speed 1200 | 160 320 320 240 750 320 243 250 63 160 104 171 171 1200 147 90 90 168 198 198 198 198 Overloaded Moves . | . . . . . . . . . . . . . . . . . . . . . . Propulsion Burnouts . | . . . . . . . . . . . . . . . . . . . . . . Robots Hopped 14 | . . . . . . . . 9 . . . . . . . . 5 . . . . Cave-ins Triggered . | . . . . . . . . . . . . . . . . . . . . . . Exploration Rate (%) 59 | 5 95 10 56 56 51 96 99 17 75 18 74 75 96 80 36 100 27 77 62 83 19 Regions Visited 21 Branch Regions 12 Pre-discovered Areas 12 | . 1 . . . . . 6 . . . . . . . . . . 1 1 3 . Known Exits Taken 4 | . . . 1 . 1 . . 1 . . . . . . . . 1 . . . . Unknown Exits Taken 14 | 1 1 1 . 1 . 1 1 . . 1 1 1 1 1 . . . 1 1 1 . Scrap Searched 6 | . . 1 . 2 . . . . . . . . . . . . . 2 1 . . Spaces Dug 169 | . 9 . . . 15 14 . 8 87 4 7 . . . 7 16 2 . . . . Terrain Destroyed 748 | . 9 14 . . 54 58 1 29 144 36 76 24 6 31 119 28 6 8 62 6 37 Melee 7 | . . . . . 1 1 . . 4 . . . . . . . 1 . . . . Projectile 226 | . . . . . . 11 1 8 35 10 12 4 6 16 20 28 5 8 39 6 17 AOE 515 | . 9 14 . . 53 46 . 21 105 26 64 20 . 15 99 . . . 23 . 20 Terrain Rammed . | . . . . . . . . . . . . . . . . . . . . . . Walls Destroyed . | . . . . . . . . . . . . . . . . . . . . . . Machines Disabled . | . . . . . . . . . . . . . . . . . . . . . . Actions | -11 -10 -10 -9 -9 -8 -8 -8 -6 -6 -5 -5 -5 -5 -5 -4 -4 -4 -4 -4 -4 -3 --------- Run | Jun Mat Min Mat Min Mat Sto Rec Fac Gar Fac Ext Cet Arc Hub Fac Was Fac Upp Upp Zhi Pro Total 23258 | 94 911 113 1301 324 1163 1141 3563 736 2276 1164 984 310 1342 860 1640 1670 1598 575 704 623 166 Wait 5679 | . 68 19 331 19 198 34 1861 74 327 194 63 13 262 77 366 789 392 50 182 343 17 Move 15391 | 66 704 65 761 264 762 899 1547 621 1764 878 670 251 1025 680 1151 768 1119 506 490 268 132 Hop 10 | . . . . . . . . 5 . . . . . . . . 5 . . . . Pick Up 206 | 9 36 4 23 5 26 19 20 1 4 5 3 14 10 4 8 3 8 1 2 1 . Fast Attach 88 | 7 2 . 10 1 8 11 2 4 . 10 6 3 3 4 9 2 5 . . 1 . Attach 47 | . 2 . 6 5 4 3 4 1 . 3 2 . 1 4 3 3 2 1 1 2 . Detach 11 | . . . . . 1 . 6 1 . 1 . . . . 2 . . . . . . Swap 145 | . 6 3 10 1 24 38 1 4 14 . 3 2 2 4 8 7 8 4 5 . 1 Drop 266 | 1 20 5 29 . 37 42 49 3 6 13 7 7 11 5 13 4 10 1 1 2 . Fire 1188 | 11 65 16 125 28 101 86 71 22 133 58 64 20 28 82 79 94 48 12 23 6 16 Melee 20 | . . . . . 1 5 . . 12 . . . . . 1 . 1 . . . . Ram 1 | . . . . . . . 1 . . . . . . . . . . . . . . Kick 2 | . . . . . . . . . . 2 . . . . . . . . . . . Crush 29 | . 8 1 6 1 1 4 . . . . 8 . . . . . . . . . . Escape Stasis 10 | . . . . . . . . . 10 . . . . . . . . . . . . Rewire 165 | . . . . . . . 1 . 6 . 158 . . . . . . . . . . Trap . | . . . . . . . . . . . . . . . . . . . . . . Miscellaneous . | . . . . . . . . . . . . . . . . . . . . . . Route ------- -11/Junkyard -10/Materials (discovered 4 exits: *Mat x2 / [*Min x2]) -10/Mines -9/Materials (discovered 4 exits: *Mat x2 / *Min x2) -9/Mines -8/Materials (discovered 4 exits: [*Fac x2] / *Sto x2) -8/Storage (discovered 2 exits: [*Fac] / *Rec) -8/Recycling -6/Factory (discovered 2 exits: [*Low] / Gar) -6/Garrison (discovered 3 exits: *Fac x3) -5/Factory (discovered 2 exits: *Fac / *Ext) -5/Extension (discovered 2 exits: *Fac / *Cet) -5/Cetus (discovered 3 exits: *Fac x2 / [*Arc]) -5/Archives (discovered 3 exits: *Fac / *Hub x2) -5/Hub_04(d) (discovered 4 exits: *Fac x4) -4/Factory (discovered 4 exits: [*Res x2] / Upp x2) -4/Waste -4/Factory (discovered 4 exits: [*Res x2] / *Upp x2) -4/Upper Caves -4/Upper Caves (discovered 2 exits: [*Res] / *Zhi) -4/Zhirov -3/Proximity Caves History --------- Turn | Location | Event 42 | -11/Junkyard | Discovered new exit (range 16) 132 | -11/Junkyard | Entered Materials 302 | -10/Materials | Build established: Mutant 336 | -10/Materials | Discovered new exit (range 7) 434 | -10/Materials | Core integrity fell below 50% 1118 | -10/Materials | Discovered new exit (range 16) 1996 | -10/Materials | Discovered new exit (range 5) 2028 | -10/Materials | Discovered new exit (range 16) 2424 | -10/Materials | Central database locked down 2453 | -10/Materials | Entered Mines 2467 | -10/Mines | Discovered new exit (range 7) 2474 | -10/Mines | Core integrity fell below 20% 2739 | -10/Mines | Entered Materials 2739 | -9/Materials | Evolved 2 slots: Propulsion x1, Utility x1 3424 | -9/Materials | Build established: Scavenger-Mutant 3625 | -9/Materials | Identified exit to Mines 3918 | -9/Materials | Discovered new exit (range 5) 4173 | -9/Materials | Central database locked down 5261 | -9/Materials | Discovered new exit (range 13) 5354 | -9/Materials | Entered Mines 5945 | -9/Mines | Lost 4 parts (2n2w) 6154 | -9/Mines | Discovered new exit (range 7) 6183 | -9/Mines | Entered Materials 6183 | -8/Materials | Evolved 2 slots: Propulsion x1, Weapon x1 6504 | -8/Materials | Build established: Scavenger-Tank 6591 | -8/Materials | Garrison activated, responded to threat 6870 | -8/Materials | Discovered new exit (range 15) 6918 | -8/Materials | Discovered new exit (range 4) 7629 | -8/Materials | Discovered new exit (range 13) 7685 | -8/Materials | Repaired Autogun 8037 | -8/Materials | Identified exit to Storage 8230 | -8/Materials | Repaired Hardlight Generator 8655 | -8/Materials | Entered Storage 9195 | -8/Storage | Used back door to open Recycling access 9195 | -8/Storage | Discovered new exit (range 5) 9855 | -8/Storage | First assault squad dispatched 9983 | -8/Storage | Build established: Tank 10322 | -8/Storage | Discovered new exit (range 11) 11003 | -8/Storage | Build established: Mutant 11228 | -8/Storage | Entered Recycling 11376 | -8/Recycling | Found Scrap Engine 11947 | -8/Recycling | Build established: Construct 12199 | -8/Recycling | Core integrity fell below 50% 12510 | -8/Recycling | Discovered new exit (range 16) 16065 | -8/Recycling | Entered Factory 16065 | -6/Factory | Evolved 4 slots: Power x1, Propulsion x1, Utility x1, Weapon x1 16284 | -6/Factory | Discovered new exit (range 11) 16415 | -6/Factory | Search patrols dispatched 16561 | -6/Factory | Identified exit to Garrison 16561 | -6/Factory | Entered Garrison 16727 | -6/Garrison | Garrison Relay disabled 16821 | -6/Garrison | Triggered checkpoint 16830 | -6/Garrison | Triggered checkpoint 16857 | -6/Garrison | Triggered checkpoint 16930 | -6/Garrison | Triggered checkpoint 17184 | -6/Garrison | Discovered new exit (range 12) 17231 | -6/Garrison | Triggered checkpoint 17250 | -6/Garrison | Garrison Relay disabled 17307 | -6/Garrison | Triggered checkpoint 17494 | -6/Garrison | Discovered new exit (range 10) 17528 | -6/Garrison | Triggered checkpoint 17559 | -6/Garrison | Garrison Relay disabled 17623 | -6/Garrison | Triggered checkpoint 17738 | -6/Garrison | Discovered new exit (range 10) 17766 | -6/Garrison | Triggered checkpoint 17811 | -6/Garrison | Garrison Relay disabled 17847 | -6/Garrison | Found embedded Infiltrators 17888 | -6/Garrison | Triggered checkpoint 18439 | -6/Garrison | P-60 Hacker assimilated allied 32-MEO(x) 18737 | -6/Garrison | Entered Factory 18737 | -5/Factory | Evolved 2 slots: Utility x2 19242 | -5/Factory | Discovered new exit (range 6) 19337 | -5/Factory | First assault squad dispatched 19406 | -5/Factory | Found Prototype Launcher 19406 | -5/Factory | Identified Mni. Smartbomb Launcher 19409 | -5/Factory | Found Mni. Smartbomb Launcher 19455 | -5/Factory | High security lockdown imminent 19535 | -5/Factory | High security lockdown engaged 19539 | -5/Factory | Discovered new exit (range 3) 19541 | -5/Factory | Entered Extension 19631 | -5/Extension | Rescued A7 19752 | -5/Extension | Rescued a captive Derelict 19753 | -5/Extension | Rescued a captive Derelict 19841 | -5/Extension | First assault squad dispatched 19851 | -5/Extension | Rescued a captive Derelict 19902 | -5/Extension | Spotted B-75 Beast 19914 | -5/Extension | Spotted B-75 Beast 19921 | -5/Extension | Destroyed B-75 Beast 19930 | -5/Extension | Destroyed B-75 Beast 20287 | -5/Extension | Rescued a captive Derelict 20288 | -5/Extension | Rescued a captive Derelict 20420 | -5/Extension | Rescued a captive Derelict 20552 | -5/Extension | Discovered new exit (range 10) 20553 | -5/Extension | Discovered new exit (range 6) 20585 | -5/Extension | Entered Cetus 20585 | -5/Cetus | Accompanied by 3 allies (A7) 20590 | -5/Cetus | Acquired a Cetus Manufacturing Module code from A7 20608 | -5/Cetus | Spotted Cetus Guard 20608 | -5/Cetus | Spotted Cetus Guard 20609 | -5/Cetus | Destroyed Cetus Guard 20610 | -5/Cetus | Spotted Cetus Guard 20611 | -5/Cetus | Destroyed Cetus Guard 20614 | -5/Cetus | Destroyed Cetus Guard 20614 | -5/Cetus | Spotted Cetus Guard 20618 | -5/Cetus | Extracted ID and sensor layout for unrecognized location from A7's data core 20642 | -5/Cetus | Destroyed Cetus Guard 20788 | -5/Cetus | Discovered new exit (range 15) 20904 | -5/Cetus | Started Cetus Manufacturing Module 20929 | -5/Cetus | Manufactured an Enhanced Grunt 20935 | -5/Cetus | Discovered new exit (range 15) 20954 | -5/Cetus | Manufactured an Enhanced Grunt 20963 | -5/Cetus | Spotted Cetus Guard 20964 | -5/Cetus | Spotted Cetus Guard 20965 | -5/Cetus | Destroyed Cetus Guard 20966 | -5/Cetus | Spotted Cetus Guard 20970 | -5/Cetus | Destroyed Cetus Guard 20972 | -5/Cetus | Destroyed Cetus Guard 20972 | -5/Cetus | Spotted Cetus Guard 20977 | -5/Cetus | Destroyed Cetus Guard 20979 | -5/Cetus | Manufactured an Enhanced Grunt 20989 | -5/Cetus | Discovered new exit (range 16) 20999 | -5/Cetus | Met Revision 17 21004 | -5/Cetus | Manufactured an Enhanced Grunt 21029 | -5/Cetus | Manufactured an Enhanced Grunt 21093 | -5/Cetus | Entered Archives 21093 | -5/Archives | Accompanied by 4 allies 21218 | -5/Archives | Discovered new exit (range 16) 21304 | -5/Archives | Build established: Commander-Construct 21583 | -5/Archives | Discovered new exit (range 14) 21674 | -5/Archives | Discovered new exit (range 16) 30194 | -5/Archives | Entered Hub_04(d) 30194 | -5/Hub_04(d) | Accompanied by 4 allies 30246 | -5/Hub_04(d) | Discovered new exit (range 15) 30527 | -5/Hub_04(d) | Build established: Construct 30682 | -5/Hub_04(d) | Discovered new exit (range 15) 30797 | -5/Hub_04(d) | Discovered new exit (range 14) 30930 | -5/Hub_04(d) | Discovered new exit (range 14) 31094 | -5/Hub_04(d) | First assault squad dispatched 31129 | -5/Hub_04(d) | Network Hub disabled 31174 | -5/Hub_04(d) | Spotted Lightning 31174 | -5/Hub_04(d) | Spotted Lightning 31175 | -5/Hub_04(d) | Spotted Lightning 31184 | -5/Hub_04(d) | System corruption reached 10% 31226 | -5/Hub_04(d) | Core integrity fell below 50% 31319 | -5/Hub_04(d) | Spotted Lightning 31323 | -5/Hub_04(d) | System corruption reached 30% 31333 | -5/Hub_04(d) | Spotted Lightning 31335 | -5/Hub_04(d) | Spotted Lightning 31357 | -5/Hub_04(d) | Entered Factory 31357 | -4/Factory | Evolved 2 slots: Propulsion x1, Utility x1 31372 | -4/Factory | Identified exit to Upper Caves 31609 | -4/Factory | Found Quantum Capacitor 31805 | -4/Factory | Repaired Adv. Heat Sink 31954 | -4/Factory | Discovered new exit (range 12) 32148 | -4/Factory | Found Mni. Smartbomb Launcher 32156 | -4/Factory | Found Mni. Smartbomb Launcher 32399 | -4/Factory | Discovered new exit (range 16) 32857 | -4/Factory | First assault squad dispatched 32962 | -4/Factory | Sucked down chute 32962 | -4/Factory | Entered Waste 32963 | -4/Waste | Met a frightened Derelict 33001 | -4/Waste | Spotted C-40 Crusher 33020 | -4/Waste | Spotted C-40 Crusher 33024 | -4/Waste | Spotted C-40 Crusher 33036 | -4/Waste | Spotted C-40 Crusher 33096 | -4/Waste | Spotted C-40 Crusher 33106 | -4/Waste | Spotted C-40 Crusher 33108 | -4/Waste | Discovered new exit (range 16) 33198 | -4/Waste | Destroyed C-40 Crusher 33317 | -4/Waste | Destroyed C-40 Crusher 33338 | -4/Waste | Destroyed C-40 Crusher 33355 | -4/Waste | Destroyed C-40 Crusher 33360 | -4/Waste | Destroyed C-40 Crusher 33413 | -4/Waste | Destroyed C-40 Crusher 33510 | -4/Waste | Found Prototype Device 33510 | -4/Waste | Identified Exp. Weapon Cycler 34536 | -4/Waste | Entered Factory 34679 | -4/Factory | Discovered new exit (range 16) 34907 | -4/Factory | Found Prototype Processor 34960 | -4/Factory | Found Prototype Hackware 34982 | -4/Factory | Discovered new exit (range 5) 35600 | -4/Factory | Entered Upper Caves 35647 | -4/Upper Caves | Met a Warlord Commander 35657 | -4/Upper Caves | Found Encrypted Comm Array 36488 | -4/Upper Caves | Attracted the attention of an 0b10 checkpoint 36506 | -4/Upper Caves | Learned Research security intel 36530 | -4/Upper Caves | Discovered new exit (range 8) 36625 | -4/Upper Caves | Entered another Upper Caves area 36629 | -4/Upper Caves | Discovered new exit (range 15) 36853 | -4/Upper Caves | Core integrity fell below 50% 37118 | -4/Upper Caves | Build established: Scavenger-Construct 37767 | -4/Upper Caves | Discovered new exit (range 12) 37835 | -4/Upper Caves | Entered Zhirov 37835 | -4/Zhirov | Discovered new exit (range 3) 37871 | -4/Zhirov | Met Zhirov 37923 | -4/Zhirov | Learned location of Command (-1) 37976 | -4/Zhirov | Zhirov requested help retrieving the SGEMP Prototype 38050 | -4/Zhirov | Cloak Generator disabled 38050 | -4/Zhirov | Attacked by Zhirov 38073 | -4/Zhirov | Zhirov detonated his lab 38315 | -4/Zhirov | Build established: Construct 38727 | -4/Zhirov | Entered Proximity Caves 38973 | -3/Proximity Caves | Attracted the attention of an 0b10 checkpoint 39034 | -3/Proximity Caves | Core integrity fell below 20% 39040 | -3/Proximity Caves | Core destroyed Last Messages --------------- 39018_ Overheating: Mni. Smartbomb Launcher damaged (-32). 39019_ Slug penetrates Wall. 39020_ Overheating: Matter decay (-14). 39021_ Y-72 Warden destroyed. 39022_ Power failure, Neutrino-Quantum Core shutdown. 39022_ Overheating: Energy bleed (-140). 39023_ Overheating: Centrium Medium Armor Plating damaged (-6). 39027_ Overheating: Matter decay (-9). 39033_ Overheating: Centrium Medium Armor Plating damaged (-1). 39033_ Overheating: Adv. Heat Sink damaged (-19). 39033_ Overheating: Imp. Cooling System damaged (-23). 39034_ Power failure, Neutrino-Quantum Core shutdown. 39034_ Overheating: Core damaged (-207). 39035_ Overheating: Energy bleed (-116). 39038_ Overheating: Centrium Medium Armor Plating damaged (-1). 39039_ Power failure, Neutrino-Quantum Core shutdown. 39039_ Overheating: Imp. Cooling System damaged (-13). 39039_ Overheating: Neutrino-Quantum Core damaged (-12). 39039_ Overheating: Broken Imp. Targeting Computer damaged (-10). 39040_ Overheating: Core damaged (-126). Map ----- +----------------------------------------------------+ | ?????????????????????????????????????????????????? | | ?????????????????????????????????????????????????? | | ?????????????????????????????????????????????????? | | ?????????????????????????????????????????????????? | | ?????????????????????????????????????????????????? | | ?????????????????????????????????????????????????? | | ?????????????????????????????????????????????????? | | ?????????????????????????????????????????????????? | | ?????????????????????????????????????????????????? | | ?????????????????????????????????????????????????? | | ?????????????????????????????????????????????????? | | ??#######????????????????????????????????????????? | | ### ##???????????##??????????????????????????? | | ########???? ##?????????????????????????? | | ### ## ##?? #?????????????????????????? | | ###?## ### ## #? #?????????#####???????????? | | ?????# #?# ## ## #??####?### ##??????????? | | ?????# ### ## ##??## ### #??????????? | | ?????# #? ### ## ? | | ?????# #?;;# #?????? | | ?????####### ##?# ##### #?????? | | ???????????# ###??# #???? #????? | | ?????###??## ##????# #????? # #??? | | ??#### ### ####### #??????#? ?? | | ??# ## ;# ## #????????? ? | | ??# @## #?????????? ?? | | ??## ### % #??????????? ?? | | ???# ##?## ########????? ??? | | ???#### #???# #??????? | | ??????# ##### ;### #???????? | | ??????# ## ## % ## #?????????????? | | ??????# ###### ;"#?????????????? | | ??????## #????# % ##?????????????? | | ???###### ##????###;;; ?????????????? | | ???# #### ##??????? #; ???????????? | | ???# #### #?## #???????# ## ?????????? | | #??# #??# #?# #????????;## #????????? | | #### #??# #?# ##???????? ; ##????????? | | ## #### ## ##?????????# ; # ##?????????? | | ## #??????????# # ## ##??????????? | | ###?????????? # #?##???????????? | | #######??????????? ## #??????????????? | | # ##???????????????? ?# #??????????????? | | ## #????????????????? % ?# #??????????????? | | ?# #?????????????????? ?# #??????????????? | | ? ??????????????????? ??? ???????????????? | | ##???????????????????????? ???????????????? | | # ##?????????????????????????##???????????????? | | ######???????????????????????????????????????????? | | ?????????????????????????????????????????????????? | +----------------------------------------------------+ Best States ------------- Heat Dissipation 102 Coolant Potential 160 Energy Generation 56 Energy Capacity 1068 Matter Stores 300 Matter Capacity 300 Sight Range 16 Terrain Scan Density 10 Jamming Range 16 Armor Coverage 600 Resistance: TH 10 Utility Shielding 90 Weapon Cycling 20 Evasion (%) 66 Targeting Accuracy 6 Recoil Reduction 6 Matter Filtering 50 Offensive Hacking 12 Defensive Hacking 14 Item Schematics ----------------- Hcp. Storage Unit | -10/Materials | Hacked Med. Storage Unit | -9/Materials | Hacked Lrg. Storage Unit | -8/Recycling | Hacked Assault Drone Bay | -4/Zhirov | Free Exp. Optical Array | -4/Zhirov | Free Imp. Arc Thrower | -4/Zhirov | Free Exp. Heat Sink | -4/Zhirov | Free Robot Schematics ------------------ None Fabricated ------------ Nothing Alien Tech Used ----------------- None Achievements -------------- None Challenges ------------ None Game ------ Seed ChipShadeWings Manual? 0 Play Time 04:33:37 Cumulative 459.2 hours Start 2023.03.17 @ 18:39:14 End 2023.03.17 @ 23:45:28 Sessions 1 Manual Loads 0 Difficulty Rogue Special Mode None Game No. 353 Rogue 353 Adventurer 0 Explorer 0 Win Type - Total 12 Types 8/2/0/0/0/0/2/0/0 Lore% 76 Gallery% 89 Achievement% 76 Wizard Run 0 Options --------- ASCII 0 Keyboard 0 Movement Numpad Keybinds 0 Fullscreen 2 Font 24/Terminus Map View 76x50 Tactical HUD 1 Map Filters NONE Filters NONE Steam 1 RUN: 086c2143-dc33-41d0-9f77-7a9fd3b71448